fUSD/lending_fUSD_20250105
["ID","MTS","AMOUNT","RATE_DAILY","PERIOD"]
[347763038,1736095860457,-581.38,9.862e-05,2]
[347763039,1736095860467,-500.0,9.862e-05,2]
[347763040,1736095860477,-500.0,9.862e-05,2]
[347763041,1736095860487,-500.0,9.862e-05,2]
[347763042,1736095860497,-500.0,9.862e-05,2]
[347763043,1736095860507,-500.0,9.862e-05,2]
[347763044,1736095860522,-500.0,9.862e-05,2]
[347763045,1736095860533,-885.2,9.862e-05,2]
[347763046,1736095860544,-571.68,9.862e-05,2]
[347763047,1736095860555,-496.50272692,9.862e-05,2]
[347763048,1736095860566,-500.0,9.862e-05,2]
[347763049,1736095860576,-565.85,9.862e-05,2]
[347763050,1736095860587,-584.68,9.862e-05,2]
[347763051,1736095860598,-500.0,9.862e-05,2]
[347763052,1736095860608,-500.0,9.862e-05,2]
[347763053,1736095860619,-500.0,9.862e-05,2]
[347763054,1736095860630,-566.83,9.862e-05,2]
[347763055,1736095860640,-500.0,9.862e-05,2]
[347763056,1736095860652,-500.0,9.862e-05,2]
[347763057,1736095860662,-500.0,9.862e-05,2]
[347763058,1736095860673,-500.0,9.862e-05,2]
[347763059,1736095860683,-812.34,9.862e-05,2]
[347763060,1736095860694,-500.0,9.862e-05,2]
[347763061,1736095860704,-1847.31,9.862e-05,2]
[347763062,1736095860715,-516.84,9.862e-05,2]
[347763063,1736095860725,-500.0,9.862e-05,2]
[347763064,1736095860736,-716.19,9.862e-05,2]
[347763065,1736095860747,-500.0,9.862e-05,2]
[347763066,1736095860758,-500.0,9.862e-05,2]
[347763067,1736095860769,-671.8,9.862e-05,2]
[347763068,1736095860779,-761.55,9.862e-05,2]
[347763069,1736095860790,-500.0,9.862e-05,2]
[347763070,1736095860800,-500.0,9.862e-05,2]
[347763071,1736095860817,-731.37,9.862e-05,2]
[347763072,1736095860827,-689.75,9.862e-05,2]
[347763073,1736095860838,-500.0,9.862e-05,2]
[347763074,1736095860848,-500.0,9.862e-05,2]
[347763075,1736095860859,-500.0,9.862e-05,2]
[347763076,1736095860869,-500.0,9.862e-05,2]
[347763077,1736095860882,-733.8,9.862e-05,2]
[347763078,1736095860893,-530.73,9.862e-05,2]
[347763079,1736095860903,-570.3,9.862e-05,2]
[347763080,1736095860914,-555.81,9.862e-05,2]
[347763081,1736095860925,-500.0,9.862e-05,2]
[347763082,1736095860935,-687.33,9.862e-05,2]
[347763083,1736095860946,-940.82,9.862e-05,2]
[347763084,1736095860957,-551.91,9.862e-05,2]
[347763085,1736095860967,-635.28,9.862e-05,2]
[347763086,1736095860977,-500.0,9.862e-05,2]
[347763087,1736095860987,-1073.58,9.862e-05,2]
[347763088,1736095860998,-1082.22,9.862e-05,2]
[347763089,1736095861008,-548.37,9.862e-05,2]
[347763090,1736095861020,-500.0,9.862e-05,2]
[347763091,1736095861035,-676.35,9.862e-05,2]
[347763092,1736095861045,-1388.69,9.862e-05,2]
[347763093,1736095861056,-500.0,9.862e-05,2]
[347763094,1736095861066,-550.27,9.862e-05,2]
[347763095,1736095861076,-792.94,9.862e-05,2]
[347763096,1736095861086,-1265.21,9.862e-05,2]
[347763097,1736095861097,-1771.38,9.862e-05,2]
[347763098,1736095861107,-500.0,9.862e-05,2]
[347763099,1736095861117,-646.75,9.862e-05,2]
[347763100,1736095861127,-500.0,9.862e-05,2]
[347763101,1736095861138,-687.89,9.862e-05,2]
[347763102,1736095861148,-3830.35,9.862e-05,2]
[347763103,1736095861158,-500.0,9.862e-05,2]
[347763104,1736095861168,-583.19,9.862e-05,2]
[347763105,1736095861179,-500.0,9.862e-05,2]
[347763106,1736095861189,-950.22,9.862e-05,2]
[347763107,1736095861199,-1533.34,9.862e-05,2]
[347763108,1736095861209,-500.0,9.862e-05,2]
[347763109,1736095861221,-500.0,9.862e-05,2]
[347763110,1736095861232,-5195.87,9.862e-05,2]
[347763111,1736095861245,-2256.91,9.862e-05,2]
[347763112,1736095861258,-635.6,9.862e-05,2]
[347763113,1736095861269,-1194.12,9.863e-05,2]
[347763114,1736095861279,-500.0,9.863e-05,2]
[347763115,1736095861290,-500.0,9.863e-05,2]
[347763116,1736095861301,-500.0,9.863e-05,2]
[347763117,1736095861313,-500.0,9.863e-05,2]
[347763118,1736095861324,-515.27,9.863e-05,2]
[347763119,1736095861335,-500.0,9.863e-05,2]
[347763120,1736095861345,-500.0,9.863e-05,2]
[347763121,1736095861356,-500.0,9.863e-05,2]
[347763122,1736095861367,-500.0,9.863e-05,2]
[347763123,1736095861378,-898.06,9.863e-05,2]
[347763124,1736095861389,-500.0,9.863e-05,2]
[347763125,1736095861399,-537.63091869,9.863e-05,2]
[347763126,1736095861409,-872.3,9.863e-05,2]
[347763127,1736095861420,-500.0,9.863e-05,2]
[347763128,1736095861432,-500.0,9.863e-05,2]
[347763129,1736095861442,-500.0,9.863e-05,2]
[347763130,1736095861453,-500.0,9.863e-05,2]
[347763131,1736095861463,-1000.0,9.863e-05,2]
[347763132,1736095861474,-500.0,9.863e-05,2]
[347763133,1736095861813,-500.0,9.863e-05,2]
[347763134,1736095861823,-500.0,9.863e-05,2]
[347763135,1736095861834,-664.88,9.863e-05,2]
[347763136,1736095861844,-500.0,9.863e-05,2]
[347763137,1736095861855,-500.0,9.863e-05,2]
[347763138,1736095861865,-797.13,9.863e-05,2]
[347763139,1736095861877,-500.0,9.863e-05,2]
[347763140,1736095861887,-500.0,9.863e-05,2]
[347763141,1736095861898,-500.0,9.863e-05,2]
[347763142,1736095861908,-500.0,9.863e-05,2]
[347763143,1736095861919,-500.0,9.863e-05,2]
[347763144,1736095861930,-500.0,9.863e-05,2]
[347763145,1736095861940,-568.18,9.863e-05,2]
[347763146,1736095861950,-500.0,9.863e-05,2]
[347763147,1736095861960,-500.0,9.863e-05,2]
[347763148,1736095861971,-500.0,9.863e-05,2]
[347763149,1736095861981,-500.0,9.863e-05,2]
[347763150,1736095861992,-1727.67,9.863e-05,2]
[347763151,1736095862003,-779.3,9.863e-05,2]
[347763152,1736095862013,-607.64,9.863e-05,2]
[347763153,1736095862023,-500.0,9.863e-05,2]
[347763154,1736095862034,-500.0,9.863e-05,2]
[347763155,1736095862044,-500.0,9.863e-05,2]
[347763156,1736095862054,-500.0,9.863e-05,2]
[347763157,1736095862064,-500.0,9.863e-05,2]
[347763158,1736095862074,-500.0,9.863e-05,2]
[347763159,1736095862084,-782.01,9.863e-05,2]
[347763160,1736095862094,-1567.9,9.863e-05,2]
[347763161,1736095862110,-611.96,9.863e-05,2]
[347763162,1736095862120,-500.0,9.863e-05,2]
[347763163,1736095862131,-565.0,9.863e-05,2]
[347763164,1736095862142,-559.82,9.863e-05,2]
[347763165,1736095862152,-500.0,9.863e-05,2]
[347763166,1736095862164,-500.0,9.863e-05,2]
[347763167,1736095862175,-550.86,9.863e-05,2]
[347763168,1736095862186,-500.0,9.863e-05,2]
[347763169,1736095862197,-500.0,9.863e-05,2]
[347763170,1736095862208,-500.0,9.863e-05,2]
[347763171,1736095862218,-500.0,9.863e-05,2]
[347763172,1736095862229,-500.0,9.863e-05,2]
[347763173,1736095862240,-500.0,9.863e-05,2]
[347763174,1736095862250,-500.0,9.863e-05,2]
[347763175,1736095862261,-585.82,9.863e-05,2]
[347763176,1736095862272,-500.0,9.863e-05,2]
[347763177,1736095862282,-1088.08,9.863e-05,2]
[347763178,1736095862294,-491.0,9.863e-05,2]
[347763179,1736095862305,-500.0,9.863e-05,2]
[347763180,1736095862316,-500.0,9.863e-05,2]
[347763181,1736095862328,-500.0,9.863e-05,2]
[347763182,1736095862339,-1279.95,9.863e-05,2]
[347763183,1736095862349,-1226.62,9.863e-05,2]
[347763184,1736095862361,-500.0,9.863e-05,2]
[347763185,1736095862373,-500.0,9.863e-05,2]
[347763186,1736095862385,-500.0,9.863e-05,2]
[347763187,1736095862395,-643.04,9.863e-05,2]
[347763188,1736095862406,-876.2,9.863e-05,2]
[347763189,1736095862418,-500.0,9.863e-05,2]
[347763190,1736095862429,-500.0,9.863e-05,2]
[347763191,1736095862439,-500.0,9.863e-05,2]
[347763192,1736095862451,-500.0,9.863e-05,2]
[347763193,1736095862463,-500.0,9.863e-05,2]
[347763194,1736095862473,-500.0,9.863e-05,2]
[347763195,1736095862483,-581.74,9.863e-05,2]
[347763196,1736095862493,-591.47,9.863e-05,2]
[347763197,1736095862504,-613.09,9.863e-05,2]
[347763198,1736095862515,-565.07,9.863e-05,2]
[347763199,1736095862526,-893.15,9.863e-05,2]
[347763200,1736095862536,-500.0,9.863e-05,2]
[347763201,1736095862547,-500.0,9.863e-05,2]
[347763202,1736095862558,-500.0,9.863e-05,2]
[347763203,1736095862569,-4529.45,9.863e-05,2]
[347763204,1736095862580,-1847.31,9.863e-05,2]
[347763205,1736095862590,-1003.38,9.863e-05,2]
[347763206,1736095862601,-951.44,9.863e-05,2]
[347763207,1736095862611,-1602.72,9.863e-05,2]
[347763208,1736095862626,-962.87,9.863e-05,2]
[347763209,1736095862640,-295.05,9.863e-05,2]
[347763210,1736095862650,-500.0,9.863e-05,2]
[347763211,1736095862662,-500.0,9.863e-05,2]
[347763212,1736095862673,-729.82,9.863e-05,2]
[347763213,1736095862683,-500.0,9.863e-05,2]
[347763214,1736095862694,-500.0,9.863e-05,2]
[347763215,1736095862705,-540.7,9.863e-05,2]
[347763216,1736095862716,-500.0,9.863e-05,2]
[347763217,1736095862726,-500.0,9.863e-05,2]
[347763218,1736095862737,-500.0,9.863e-05,2]
[347763219,1736095862747,-500.0,9.863e-05,2]
[347763220,1736095862758,-500.0,9.863e-05,2]
[347763221,1736095862770,-500.0,9.863e-05,2]
[347763222,1736095862781,-2757.49,9.863e-05,2]
[347763223,1736095862791,-500.0,9.863e-05,2]
[347763224,1736095862803,-611.9,9.863e-05,2]
[347763225,1736095862820,-941.3,9.863e-05,2]
[347763226,1736095862832,-500.0,9.863e-05,2]
[347763227,1736095862843,-500.0,9.863e-05,2]
[347763228,1736095862855,-500.0,9.863e-05,2]
[347763229,1736095862866,-500.0,9.863e-05,2]
[347763230,1736095862876,-500.0,9.863e-05,2]
[347763231,1736095862887,-500.0,9.863e-05,2]
[347763232,1736095862899,-1398.91,9.863e-05,2]
[347763233,1736095862909,-816.85,9.863e-05,2]
[347763234,1736095862919,-500.0,9.863e-05,2]
[347763235,1736095862930,-1869.6,9.863e-05,2]
[347763236,1736095862940,-500.0,9.863e-05,2]
[347763237,1736095862954,-1890.04,9.863e-05,2]
[347763238,1736095862964,-500.0,9.863e-05,2]
[347763239,1736095862975,-1724.92,9.863e-05,2]
[347763240,1736095862986,-500.0,9.863e-05,2]
[347763241,1736095862997,-958.63,9.863e-05,2]
[347763242,1736095863007,-500.0,9.863e-05,2]
[347763243,1736095863018,-2593.99,9.863e-05,2]
[347763244,1736095863029,-389.34492619,9.863e-05,2]
[347763245,1736095863040,-3988.32,9.863e-05,2]
[347763246,1736095863051,-713.17,9.863e-05,2]
[347763247,1736095863062,-555.29,9.863e-05,2]
[347763248,1736095863074,-500.0,9.863e-05,2]
[347763249,1736095863085,-589.98,9.863e-05,2]
[347763250,1736095863097,-2839.12,9.863e-05,2]
[347763251,1736095863108,-1013.43,9.863e-05,2]
[347763252,1736095863119,-707.78,9.863e-05,2]
[347763253,1736095863130,-3292.79,9.863e-05,2]
[347763254,1736095863141,-500.0,9.863e-05,2]
[347763255,1736095863151,-500.0,9.863e-05,2]
[347763256,1736095863163,-973.9,9.863e-05,2]
[347763257,1736095863174,-1219.44,9.863e-05,2]
[347763258,1736095863186,-500.0,9.863e-05,2]
[347763259,1736095863198,-2047.69,9.863e-05,2]
[347763260,1736095863210,-950.22,9.863e-05,2]
[347763261,1736095863221,-841.68,9.863e-05,2]
[347763262,1736095863231,-1957.92,9.863e-05,2]
[347763263,1736095863243,-1161.3,9.863e-05,2]
[347763264,1736095863254,-500.0,9.863e-05,2]
[347763265,1736095863266,-4172.5169291,9.9e-05,4]
[347763266,1736095863279,-587.0,9.943e-05,2]
[347763267,1736095863290,-10139.10217001,9.983e-05,2]
[347763268,1736095863300,-150.0,9.986e-05,2]
[347763269,1736095863310,-1129.73580448,0.0001,2]
[347763270,1736095863321,-1000.0,0.0001,2]
[347763271,1736095863331,-994.8549,0.0001,2]
[347763272,1736095863342,-1000.0,0.0001,2]
[347763273,1736095863352,-677.87,0.0001,2]
[347763274,1736095863363,-7960.3417435,0.0001,2]
[347763275,1736095863373,-10139.10217014,0.0001,2]
[347763276,1736095863383,-10139.10217001,0.0001,2]
[347763277,1736095863394,-10139.10217001,0.0001,2]
[347763278,1736095863405,-10139.10217001,0.0001,2]
[347763279,1736095863414,-10139.10217001,0.0001,2]
[347763280,1736095863424,-10139.10217001,0.0001,2]
[347763281,1736095863435,-10139.10217001,0.0001,2]
[347763282,1736095863445,-10139.10217001,0.0001,2]
[347763283,1736095863455,-10139.10217001,0.0001,2]
[347763284,1736095863465,-10139.10217001,0.0001,2]
[347763285,1736095863476,-10139.10217001,0.0001,2]
[347763286,1736095863487,-662.20984684,0.00010099,2]
[347763287,1736095863497,-262.37114175,0.00010133,2]
[347763288,1736095863507,-1856.37,0.00010133,2]
[347763289,1736095863517,-500.0,0.00010133,2]
[347763290,1736095863529,-1176.54,0.00010133,2]
[347763291,1736095863539,-530.44,0.00010133,2]
[347763292,1736095863549,-2814.45,0.00010133,2]
[347763293,1736095863560,-500.0,0.00010133,2]
[347763294,1736095863571,-769.38,0.00010133,2]
[347763295,1736095863581,-500.0,0.00010133,2]
[347763296,1736095863592,-675.21,0.00010133,2]
[347763297,1736095863603,-1561.87,0.00010133,2]
[347763298,1736095863615,-500.0,0.00010133,2]
[347763299,1736095863638,-1751.39,0.00010133,2]
[347763300,1736095863651,-576.37,0.00010133,2]
[347763301,1736095863663,-711.82,0.00010134,2]
[347763302,1736095863674,-777.32,0.00010134,2]
[347763303,1736095863685,-584.27,0.00010134,2]
[347763304,1736095863697,-1362.64,0.00010134,2]
[347763305,1736095863709,-933.23,0.00010134,2]
[347763306,1736095863721,-798.0,0.00010134,2]
[347763307,1736095863732,-500.0,0.00010134,2]
[347763308,1736095863743,-500.0,0.00010134,2]
[347763309,1736095863755,-1406.53,0.00010134,2]
[347763310,1736095863766,-500.0,0.00010134,2]
[347763311,1736095863779,-2482.55,0.00010134,2]
[347763312,1736095863793,-500.0,0.00010134,2]
[347763313,1736095863806,-2577.14,0.00010134,2]
[347763314,1736095863821,-992.6,0.00010134,2]
[347763315,1736095863832,-500.0,0.00010134,2]
[347763316,1736095863843,-1643.78,0.00010134,2]
[347763317,1736095863855,-500.0,0.00010134,2]
[347763318,1736095863868,-4470.01,0.00010134,2]
[347763319,1736095863880,-1552.7,0.00010134,2]
[347763320,1736095863891,-500.0,0.00010134,2]
[347763321,1736095863903,-645.32,0.00010134,2]
[347763322,1736095863915,-500.0,0.00010134,2]
[347763323,1736095863926,-800.4,0.00010134,2]
[347763324,1736095863938,-1519.25,0.00010134,2]
[347763325,1736095863950,-501.13,0.00010134,2]
[347763326,1736095863961,-500.0,0.00010134,2]
[347763327,1736095863972,-500.0,0.00010134,2]
[347763328,1736095863983,-1316.83,0.00010134,2]
[347763329,1736095863994,-1065.02017,0.00010134,2]
[347763330,1736095864006,-500.0,0.00010134,2]
[347763331,1736095864017,-500.0,0.00010134,2]
[347763332,1736095864030,-2870.07,0.00010134,2]
[347763333,1736095864040,-2582.52,0.00010134,2]
[347763334,1736095864051,-500.0,0.00010134,2]
[347763335,1736095864063,-885.235852,0.00010134,2]
[347763336,1736095864073,-1296.0,0.00010134,2]
[347763337,1736095864084,-500.0,0.00010134,2]
[347763338,1736095864095,-157.588954,0.00010134,2]
[347763339,1736095864106,-1263.86,0.00010134,2]
[347763340,1736095864117,-559.66,0.00010134,2]
[347763341,1736095864128,-1451.88,0.00010134,2]
[347763342,1736095864139,-500.0,0.00010134,2]
[347763343,1736095864150,-500.0,0.00010134,2]
[347763344,1736095864161,-662.17,0.00010134,2]
[347763345,1736095864171,-500.0,0.00010134,2]
[347763346,1736095864182,-1117.81,0.00010134,2]
[347763347,1736095864193,-564.52,0.00010134,2]
[347763348,1736095864205,-500.0,0.00010134,2]
[347763349,1736095864217,-626.4015965,0.00010134,2]
[347763350,1736095864228,-500.0,0.00010134,2]
[347763351,1736095864240,-500.0,0.00010134,2]
[347763352,1736095864251,-883.45,0.00010134,2]
[347763353,1736095864262,-500.0,0.00010134,2]
[347763354,1736095864274,-500.0,0.00010134,2]
[347763355,1736095864284,-500.0,0.00010134,2]
[347763356,1736095864295,-2939.35,0.00010134,2]
[347763357,1736095864305,-951.44,0.00010134,2]
[347763358,1736095864317,-500.0,0.00010134,2]
[347763359,1736095864328,-500.0,0.00010134,2]
[347763360,1736095864339,-500.0,0.00010134,2]
[347763361,1736095864351,-3218.91,0.00010135,2]
[347763362,1736095864362,-1847.93,0.00010135,2]
[347763363,1736095864373,-3406.35,0.00010135,2]
[347763364,1736095864383,-548.05,0.00010135,2]
[347763365,1736095864395,-3997.2,0.00010135,2]
[347763366,1736095864406,-697.66,0.00010135,2]
[347763367,1736095864417,-1470.82,0.00010136,2]
[347763368,1736095864428,-1194.12,0.00010136,2]
[347763369,1736095864438,-500.0,0.00010136,2]
[347763370,1736095864449,-500.0,0.00010136,2]
[347763371,1736095864460,-500.0,0.00010136,2]
[347763372,1736095864471,-500.0,0.00010136,2]
[347763373,1736095864482,-515.27,0.00010136,2]
[347763374,1736095864493,-500.0,0.00010136,2]
[347763375,1736095864504,-500.0,0.00010136,2]
[347763376,1736095864514,-297.33696504,0.00010136,2]
[347763377,1736095864526,-500.0,0.00010136,2]
[347763378,1736095864536,-898.06,0.00010136,2]
[347763379,1736095864547,-187.09308349,0.00010136,2]
[347763380,1736095864558,-872.3,0.00010136,2]
[347763381,1736095864699,-500.0,0.00010136,2]
[347763382,1736095864709,-500.0,0.00010136,2]
[347763383,1736095864719,-500.0,0.00010136,2]
[347763384,1736095864730,-500.0,0.00010136,2]
[347763385,1736095864740,-1000.0,0.00010136,2]
[347763386,1736095864750,-500.0,0.00010136,2]
[347763387,1736095864760,-500.0,0.00010136,2]
[347763388,1736095864769,-500.0,0.00010136,2]
[347763389,1736095864779,-664.88,0.00010136,2]
[347763390,1736095864789,-500.0,0.00010136,2]
[347763391,1736095864798,-618.06770562,0.00010136,2]
[347763392,1736095864811,-797.13,0.00010136,2]
[347763393,1736095864821,-500.0,0.00010136,2]
[347763394,1736095864830,-500.0,0.00010136,2]
[347763395,1736095864840,-500.0,0.00010136,2]
[347763396,1736095864851,-500.0,0.00010136,2]
[347763397,1736095864862,-500.0,0.00010136,2]
[347763398,1736095864873,-247.41056082,0.00010136,2]
[347763399,1736095864884,-568.18,0.00010136,2]
[347763400,1736095864894,-500.0,0.00010136,2]
[347763401,1736095864904,-500.0,0.00010136,2]
[347763402,1736095864913,-500.0,0.00010136,2]
[347763403,1736095864923,-500.0,0.00010136,2]
[347763404,1736095864933,-779.3,0.00010136,2]
[347763405,1736095864944,-607.64,0.00010136,2]
[347763406,1736095864954,-500.0,0.00010136,2]
[347763407,1736095864964,-500.0,0.00010136,2]
[347763408,1736095864975,-500.0,0.00010136,2]
[347763409,1736095864985,-500.0,0.00010136,2]
[347763410,1736095864994,-500.0,0.00010136,2]
[347763411,1736095865004,-500.0,0.00010136,2]
[347763412,1736095865014,-500.0,0.00010136,2]
[347763413,1736095865025,-500.0,0.00010136,2]
[347763414,1736095865035,-782.01,0.00010136,2]
[347763415,1736095865045,-500.0,0.00010136,2]
[347763416,1736095865055,-1567.9,0.00010136,2]
[347763417,1736095865065,-611.96,0.00010136,2]
[347763418,1736095865075,-500.0,0.00010136,2]
[347763419,1736095865085,-542.45,0.00010136,2]
[347763420,1736095865095,-565.0,0.00010136,2]
[347763421,1736095865106,-559.82,0.00010136,2]
[347763422,1736095865116,-500.0,0.00010136,2]
[347763423,1736095865126,-500.0,0.00010136,2]
[347763424,1736095865135,-500.0,0.00010136,2]
[347763425,1736095865145,-500.0,0.00010136,2]
[347763426,1736095865155,-550.86,0.00010136,2]
[347763427,1736095865164,-509.74,0.00010136,2]
[347763428,1736095865175,-500.0,0.00010136,2]
[347763429,1736095865185,-500.0,0.00010136,2]
[347763430,1736095865195,-500.0,0.00010136,2]
[347763431,1736095865206,-500.0,0.00010136,2]
[347763432,1736095865217,-500.0,0.00010136,2]
[347763433,1736095865227,-500.0,0.00010136,2]
[347763434,1736095865237,-500.0,0.00010136,2]
[347763435,1736095865248,-500.0,0.00010136,2]
[347763436,1736095865261,-500.0,0.00010136,2]
[347763437,1736095865271,-500.0,0.00010136,2]
[347763438,1736095865281,-585.82,0.00010136,2]
[347763439,1736095865291,-500.0,0.00010136,2]
[347763440,1736095865302,-591.3,0.00010136,2]
[347763441,1736095865312,-500.0,0.00010136,2]
[347763442,1736095865322,-500.0,0.00010136,2]
[347763443,1736095865332,-500.0,0.00010136,2]
[347763444,1736095865342,-581.38,0.00010136,2]
[347763445,1736095865352,-500.0,0.00010136,2]
[347763446,1736095865362,-500.0,0.00010136,2]
[347763447,1736095865371,-1279.95,0.00010136,2]
[347763448,1736095865380,-500.0,0.00010136,2]
[347763449,1736095865390,-500.0,0.00010136,2]
[347763450,1736095865401,-1226.62,0.00010136,2]
[347763451,1736095865411,-364.84712354,0.00010136,2]
[347763452,1736095865422,-500.0,0.00010136,2]
[347763453,1736095865432,-500.0,0.00010136,2]
[347763454,1736095865442,-500.0,0.00010136,2]
[347763455,1736095865453,-643.04,0.00010136,2]
[347763456,1736095865463,-530.97,0.00010136,2]
[347763457,1736095865473,-500.0,0.00010136,2]
[347763458,1736095865483,-876.2,0.00010136,2]
[347763459,1736095865493,-500.0,0.00010136,2]
[347763460,1736095865503,-500.0,0.00010136,2]
[347763461,1736095865512,-885.2,0.00010136,2]
[347763462,1736095865522,-571.68,0.00010136,2]
[347763463,1736095865532,-500.0,0.00010136,2]
[347763464,1736095865542,-500.0,0.00010136,2]
[347763465,1736095865552,-500.0,0.00010136,2]
[347763466,1736095865562,-565.85,0.00010136,2]
[347763467,1736095865572,-500.0,0.00010136,2]
[347763468,1736095865583,-500.0,0.00010136,2]
[347763469,1736095865592,-584.68,0.00010136,2]
[347763470,1736095865602,-500.0,0.00010136,2]
[347763471,1736095865613,-500.0,0.00010136,2]
[347763472,1736095865623,-500.0,0.00010136,2]
[347763473,1736095865633,-500.0,0.00010136,2]
[347763474,1736095865642,-581.74,0.00010136,2]
[347763475,1736095865652,-591.47,0.00010136,2]
[347763476,1736095865662,-566.83,0.00010136,2]
[347763477,1736095865672,-500.0,0.00010136,2]
[347763478,1736095865681,-613.09,0.00010136,2]
[347763479,1736095865691,-203.52,0.00010136,2]
[347763480,1736095865700,-565.07,0.00010136,2]
[347763481,1736095865710,-893.15,0.00010136,2]
[347763482,1736095865720,-500.0,0.00010136,2]
[347763483,1736095865730,-500.0,0.00010136,2]
[347763484,1736095865740,-500.0,0.00010136,2]
[347763485,1736095865750,-205.33817375,0.00010136,2]
[347763486,1736095865761,-500.0,0.00010136,2]
[347763487,1736095865772,-812.34,0.00010136,2]
[347763488,1736095865781,-500.0,0.00010136,2]
[347763489,1736095865791,-1847.31,0.00010136,2]
[347763490,1736095865801,-4529.45,0.00010136,2]
[347763491,1736095865815,-1847.31,0.00010136,2]
[347763492,1736095865825,-516.84,0.00010136,2]
[347763493,1736095865836,-1003.38,0.00010136,2]
[347763494,1736095865847,-500.0,0.00010136,2]
[347763495,1736095865857,-716.19,0.00010136,2]
[347763496,1736095865868,-951.44,0.00010136,2]
[347763497,1736095865878,-1602.72,0.00010136,2]
[347763498,1736095865888,-500.0,0.00010136,2]
[347763499,1736095865898,-500.0,0.00010136,2]
[347763500,1736095865909,-671.8,0.00010136,2]
[347763501,1736095865918,-500.0,0.00010136,2]
[347763502,1736095865928,-500.0,0.00010136,2]
[347763503,1736095865937,-761.55,0.00010136,2]
[347763504,1736095865946,-500.0,0.00010136,2]
[347763505,1736095865956,-500.0,0.00010136,2]
[347763506,1736095865965,-729.82,0.00010136,2]
[347763507,1736095865975,-500.0,0.00010136,2]
[347763508,1736095865984,-500.0,0.00010136,2]
[347763509,1736095865994,-731.37,0.00010136,2]
[347763510,1736095866003,-540.7,0.00010136,2]
[347763511,1736095866013,-689.75,0.00010136,2]
[347763512,1736095866022,-500.0,0.00010136,2]
[347763513,1736095866032,-500.0,0.00010136,2]
[347763514,1736095866043,-500.0,0.00010136,2]
[347763515,1736095866052,-500.0,0.00010136,2]
[347763516,1736095866062,-500.0,0.00010136,2]
[347763517,1736095866073,-500.0,0.00010136,2]
[347763518,1736095866084,-500.0,0.00010136,2]
[347763519,1736095866094,-500.0,0.00010136,2]
[347763520,1736095866103,-500.0,0.00010136,2]
[347763521,1736095866114,-500.0,0.00010136,2]
[347763522,1736095866124,-2757.49,0.00010136,2]
[347763523,1736095866135,-611.9,0.00010136,2]
[347763524,1736095866145,-500.0,0.00010136,2]
[347763525,1736095866155,-733.8,0.00010136,2]
[347763526,1736095866164,-500.0,0.00010136,2]
[347763527,1736095866174,-941.3,0.00010136,2]
[347763528,1736095866184,-530.73,0.00010136,2]
[347763529,1736095866195,-500.0,0.00010136,2]
[347763530,1736095866206,-570.3,0.00010136,2]
[347763531,1736095866217,-500.0,0.00010136,2]
[347763532,1736095866227,-500.0,0.00010136,2]
[347763533,1736095866237,-555.81,0.00010136,2]
[347763534,1736095866247,-500.0,0.00010136,2]
[347763535,1736095866258,-500.0,0.00010136,2]
[347763536,1736095866267,-1398.91,0.00010136,2]
[347763537,1736095866277,-816.85,0.00010136,2]